[Event "*** Titled Tuesday Blitz"]
[Site "Chess.com"]
[Date "2019.01.01"]
[Round "6"]
[White "mersad_98"]
[Black "ehrenfeld"]
[Result "1/2-1/2"]
[WhiteElo "2631"]
[BlackElo "2446"]
[TimeControl "180+2"]
[EndTime "14:29:14 PST"]
[Termination "Game drawn - insufficient material"]

1. e4 {[%clk 0:03:01.9]} 1... e5 {[%clk 0:03:00.5]} 2. Nf3 {[%clk 0:03:02.9]}
2... Nc6 {[%clk 0:03:01.5]} 3. Bb5 {[%clk 0:03:03.1]} 3... a6 {[%clk 0:03:01.7]}
4. Ba4 {[%clk 0:03:02.2]} 4... Nf6 {[%clk 0:03:02.5]} 5. O-O {[%clk 0:03:01.4]}
5... Be7 {[%clk 0:03:03.2]} 6. Re1 {[%clk 0:03:00.1]} 6... b5 {[%clk 0:03:03.8]}
7. Bb3 {[%clk 0:03:00.3]} 7... d6 {[%clk 0:03:05]} 8. c3 {[%clk 0:03:00]} 8...
O-O {[%clk 0:03:05.9]} 9. h3 {[%clk 0:02:59.6]} 9... Na5 {[%clk 0:03:06.8]} 10.
Bc2 {[%clk 0:03:01.2]} 10... c5 {[%clk 0:03:08]} 11. d4 {[%clk 0:03:02.8]} 11...
Qc7 {[%clk 0:03:09.1]} 12. d5 {[%clk 0:03:01]} 12... c4 {[%clk 0:03:07.6]} 13.
b4 {[%clk 0:02:50.2]} 13... cxb3 {[%clk 0:03:06.1]} 14. axb3 {[%clk 0:02:51.7]}
14... Nb7 {[%clk 0:03:03.1]} 15. Be3 {[%clk 0:02:46.8]} 15... Bd7 {[%clk
0:03:01.1]} 16. b4 {[%clk 0:02:38.1]} 16... Ne8 {[%clk 0:02:51.8]} 17. Bd3
{[%clk 0:02:34.8]} 17... g6 {[%clk 0:02:46.7]} 18. Qb3 {[%clk 0:02:19]} 18...
Ng7 {[%clk 0:02:41.4]} 19. Re2 {[%clk 0:02:19.7]} 19... a5 {[%clk 0:02:32.7]}
20. Rea2 {[%clk 0:02:08.6]} 20... a4 {[%clk 0:02:31.5]} 21. Qd1 {[%clk 0:02:10]}
21... f5 {[%clk 0:02:27.1]} 22. Rc2 {[%clk 0:02:06.4]} 22... f4 {[%clk
0:02:16.9]} 23. Bd2 {[%clk 0:01:56.7]} 23... Qb6 {[%clk 0:02:15.8]} 24. Na3
{[%clk 0:01:55.8]} 24... g5 {[%clk 0:01:54]} 25. Qe2 {[%clk 0:01:54.4]} 25... g4
{[%clk 0:01:22.5]} 26. hxg4 {[%clk 0:01:52.7]} 26... Bxg4 {[%clk 0:01:23.3]} 27.
Bxb5 {[%clk 0:01:48.8]} 27... Nd8 {[%clk 0:01:15.9]} 28. Qd1 {[%clk 0:01:32.5]}
28... Nf7 {[%clk 0:01:04.8]} 29. Be2 {[%clk 0:01:32.7]} 29... Kh8 {[%clk
0:00:55.8]} 30. c4 {[%clk 0:01:31.4]} 30... Rg8 {[%clk 0:00:47]} 31. Rac1 {[%clk
0:01:09.8]} 31... Nh5 {[%clk 0:00:39.4]} 32. c5 {[%clk 0:01:06.8]} 32... dxc5
{[%clk 0:00:38.8]} 33. bxc5 {[%clk 0:01:07]} 33... Qg6 {[%clk 0:00:34.6]} 34.
Ne1 {[%clk 0:00:56.4]} 34... Nf6 {[%clk 0:00:22.3]} 35. Bxg4 {[%clk 0:00:51.8]}
35... Nxg4 {[%clk 0:00:22.6]} 36. Rc3 {[%clk 0:00:38.3]} 36... Bh4 {[%clk
0:00:11.1]} 37. Rf3 {[%clk 0:00:38.9]} 37... Ng5 {[%clk 0:00:11.6]} 38. Rcc3
{[%clk 0:00:27.2]} 38... Nxf3+ {[%clk 0:00:11.9]} 39. Rxf3 {[%clk 0:00:29.1]}
39... Nxf2 {[%clk 0:00:11.8]} 40. Rxf2 {[%clk 0:00:30.3]} 40... Bxf2+ {[%clk
0:00:12.7]} 41. Kxf2 {[%clk 0:00:32.2]} 41... Qg3+ {[%clk 0:00:13.5]} 42. Kf1
{[%clk 0:00:30.8]} 42... Qxa3 {[%clk 0:00:14.3]} 43. Qh5 {[%clk 0:00:26.3]}
43... Rae8 {[%clk 0:00:12.6]} 44. c6 {[%clk 0:00:27.7]} 44... Qc5 {[%clk
0:00:11.4]} 45. Nd3 {[%clk 0:00:23.8]} 45... Qc4 {[%clk 0:00:12.1]} 46. Qe2
{[%clk 0:00:24.6]} 46... a3 {[%clk 0:00:12.8]} 47. Nxf4 {[%clk 0:00:25.4]} 47...
Qxe2+ {[%clk 0:00:13.1]} 48. Nxe2 {[%clk 0:00:27.3]} 48... a2 {[%clk 0:00:14.3]}
49. Bc3 {[%clk 0:00:28.9]} 49... Rg4 {[%clk 0:00:14.7]} 50. d6 {[%clk
0:00:27.8]} 50... Rxe4 {[%clk 0:00:11.9]} 51. d7 {[%clk 0:00:28.7]} 51... Rf8+
{[%clk 0:00:12.8]} 52. Ke1 {[%clk 0:00:30.1]} 52... Rc4 {[%clk 0:00:13.9]} 53.
Bxe5+ {[%clk 0:00:29.8]} 53... Kg8 {[%clk 0:00:15]} 54. Nf4 {[%clk 0:00:20.7]}
54... Rxc6 {[%clk 0:00:15.5]} 55. Kd2 {[%clk 0:00:22.3]} 55... Rd6+ {[%clk
0:00:15.8]} 56. Bxd6 {[%clk 0:00:22.5]} 56... a1=Q {[%clk 0:00:15.7]} 57. Bxf8
{[%clk 0:00:23.1]} 57... Qa5+ {[%clk 0:00:16.2]} 58. Ke3 {[%clk 0:00:21.6]}
58... Qb6+ {[%clk 0:00:13.5]} 59. Ke4 {[%clk 0:00:16.4]} 59... Qb7+ {[%clk
0:00:13.7]} 60. Ke5 {[%clk 0:00:11.9]} 60... Qxd7 {[%clk 0:00:13.8]} 61. Bd6
{[%clk 0:00:13.8]} 61... Qa4 {[%clk 0:00:13.6]} 62. Nd5 {[%clk 0:00:14.8]} 62...
Qd1 {[%clk 0:00:12.7]} 63. Ne7+ {[%clk 0:00:14.9]} 63... Kf7 {[%clk 0:00:12.8]}
64. Nf5 {[%clk 0:00:16.8]} 64... Qe2+ {[%clk 0:00:13.5]} 65. Kf4 {[%clk
0:00:17.7]} 65... Qxg2 {[%clk 0:00:14.3]} 66. Be5 {[%clk 0:00:17.8]} 66... h5
{[%clk 0:00:14.5]} 67. Nd4 {[%clk 0:00:18.1]} 67... Qg4+ {[%clk 0:00:15.1]} 68.
Ke3 {[%clk 0:00:18.3]} 68... h4 {[%clk 0:00:16.3]} 69. Nf3 {[%clk 0:00:20.2]}
69... h3 {[%clk 0:00:16.4]} 70. Bh2 {[%clk 0:00:22.1]} 70... Qg2 {[%clk
0:00:16.6]} 71. Bf4 {[%clk 0:00:22.4]} 71... Ke6 {[%clk 0:00:16.7]} 72. Be5
{[%clk 0:00:21.8]} 72... Kd5 {[%clk 0:00:17.4]} 73. Bh2 {[%clk 0:00:22.9]} 73...
Qg4 {[%clk 0:00:17.8]} 74. Bf4 {[%clk 0:00:23.6]} 74... Qf5 {[%clk 0:00:18.4]}
75. Be5 {[%clk 0:00:22.7]} 75... Kc4 {[%clk 0:00:18.6]} 76. Kf2 {[%clk
0:00:22.5]} 76... Kd3 {[%clk 0:00:18.8]} 77. Kg3 {[%clk 0:00:22.6]} 77... Ke4
{[%clk 0:00:19.1]} 78. Nh4 {[%clk 0:00:21.2]} 78... Kxe5 {[%clk 0:00:19.9]} 79.
Nxf5 {[%clk 0:00:21.4]} 79... Kxf5 {[%clk 0:00:20.9]} 80. Kxh3 {[%clk
0:00:22.7]} 1/2-1/2

[Event "*** Titled Tuesday Blitz"]
[Site "Chess.com"]
[Date "2019.01.01"]
[Round "6"]
[White "vovachesss"]
[Black "LucaBrasi1968"]
[Result "1-0"]
[WhiteElo "2491"]
[BlackElo "2370"]
[TimeControl "180+2"]
[EndTime "14:30:48 PST"]
[Termination "vovachesss won by resignation"]

1. c4 {[%clk 0:03:01.9]} 1... f5 {[%clk 0:02:54.9]} 2. Nc3 {[%clk 0:03:01.8]}
2... Nf6 {[%clk 0:02:55.6]} 3. d3 {[%clk 0:03:02.3]} 3... e5 {[%clk 0:02:50.2]}
4. e4 {[%clk 0:03:02.4]} 4... fxe4 {[%clk 0:02:47.8]} 5. dxe4 {[%clk 0:03:01.4]}
5... Bc5 {[%clk 0:02:49.2]} 6. Bg5 {[%clk 0:02:47.6]} 6... d6 {[%clk 0:02:48.4]}
7. Nf3 {[%clk 0:02:12.2]} 7... Be6 {[%clk 0:02:44.9]} 8. Bd3 {[%clk 0:02:06.3]}
8... O-O {[%clk 0:02:44]} 9. Qc2 {[%clk 0:02:05]} 9... Nc6 {[%clk 0:02:39.9]}
10. a3 {[%clk 0:01:30.9]} 10... a6 {[%clk 0:02:38]} 11. Nd5 {[%clk 0:01:26.3]}
11... Bxd5 {[%clk 0:02:31.9]} 12. exd5 {[%clk 0:01:25.5]} 12... Nd4 {[%clk
0:02:14]} 13. Nxd4 {[%clk 0:01:26.3]} 13... Bxd4 {[%clk 0:02:14.6]} 14. Bxh7+
{[%clk 0:01:25.6]} 14... Nxh7 {[%clk 0:01:52.9]} 15. Bxd8 {[%clk 0:01:25.2]}
15... Raxd8 {[%clk 0:01:53.7]} 16. f3 {[%clk 0:01:19]} 16... b5 {[%clk
0:01:46.6]} 17. O-O-O {[%clk 0:01:15.6]} 17... bxc4 {[%clk 0:01:45.8]} 18. Qxc4
{[%clk 0:01:17.5]} 18... Rb8 {[%clk 0:01:45.6]} 19. Rxd4 {[%clk 0:01:17.8]}
19... exd4 {[%clk 0:01:45.3]} 20. Qxd4 {[%clk 0:01:19.7]} 20... Nf6 {[%clk
0:01:45.3]} 21. Re1 {[%clk 0:01:18.9]} 21... Rb5 {[%clk 0:01:43.4]} 22. Re7
{[%clk 0:01:10.9]} 22... Rxd5 {[%clk 0:01:41.8]} 23. Qc4 {[%clk 0:01:10.7]}
23... Kh7 {[%clk 0:01:18.5]} 24. Rxc7 {[%clk 0:01:02]} 24... Re8 {[%clk
0:01:13.1]} 25. Kb1 {[%clk 0:00:49.5]} 25... Rd2 {[%clk 0:01:08.7]} 26. Qc3
{[%clk 0:00:46.8]} 26... Rd1+ {[%clk 0:01:05.4]} 27. Ka2 {[%clk 0:00:47.8]}
27... Kh8 {[%clk 0:00:39.3]} 28. Qc2 {[%clk 0:00:41.3]} 28... Ree1 {[%clk
0:00:36.4]} 29. Rc8+ {[%clk 0:00:34.4]} 29... Ng8 {[%clk 0:00:27.7]} 30. Re8
{[%clk 0:00:36.3]} 30... Ra1+ {[%clk 0:00:26.8]} 31. Kb3 {[%clk 0:00:29.2]}
31... Rxe8 {[%clk 0:00:28.3]} 32. Qg6 {[%clk 0:00:19.4]} 32... Rae1 {[%clk
0:00:27.8]} 33. Qxd6 {[%clk 0:00:19.6]} 33... R1e6 {[%clk 0:00:28.1]} 34. Qd5
{[%clk 0:00:17.8]} 34... Rb8+ {[%clk 0:00:28.5]} 35. Kc3 {[%clk 0:00:12]} 35...
Ree8 {[%clk 0:00:29.1]} 36. Qh5+ {[%clk 0:00:10.2]} 36... Nh6 {[%clk 0:00:30]}
37. Qg6 {[%clk 0:00:12.1]} 37... Rec8+ {[%clk 0:00:28.4]} 38. Kd3 {[%clk
0:00:12.5]} 38... Rxb2 {[%clk 0:00:26.8]} 39. g4 {[%clk 0:00:13.1]} 39... Rbb8
{[%clk 0:00:26.2]} 40. g5 {[%clk 0:00:13.9]} 40... Rd8+ {[%clk 0:00:27]} 41. Ke3
{[%clk 0:00:14]} 41... Re8+ {[%clk 0:00:25.5]} 42. Kf2 {[%clk 0:00:14.4]} 42...
Rb2+ {[%clk 0:00:23.8]} 43. Kg3 {[%clk 0:00:15.9]} 43... Ree2 {[%clk 0:00:23.4]}
44. Kf4 {[%clk 0:00:06.7]} 44... Rg2 {[%clk 0:00:20.4]} 45. Qe8+ {[%clk
0:00:06.5]} 45... Kh7 {[%clk 0:00:20.7]} 46. gxh6 {[%clk 0:00:06]} 46... Kxh6
{[%clk 0:00:20.7]} 47. Qh8+ {[%clk 0:00:03.9]} 47... Kg6 {[%clk 0:00:20.8]} 48.
h4 {[%clk 0:00:05.5]} 48... Rh2 {[%clk 0:00:18.6]} 49. Qe8+ {[%clk 0:00:05.8]}
49... Kh7 {[%clk 0:00:16.6]} 50. Qe4+ {[%clk 0:00:06.7]} 50... Kh6 {[%clk
0:00:17.2]} 51. Qe6+ {[%clk 0:00:07.3]} 51... Kh7 {[%clk 0:00:18.4]} 52. Qf5+
{[%clk 0:00:08.3]} 52... Kh6 {[%clk 0:00:18.6]} 53. Qg5+ {[%clk 0:00:09.3]}
53... Kh7 {[%clk 0:00:19.8]} 54. Qh5+ {[%clk 0:00:10.3]} 54... Kg8 {[%clk
0:00:20.7]} 55. Qe8+ {[%clk 0:00:11.3]} 55... Kh7 {[%clk 0:00:21.9]} 56. Qe4+
{[%clk 0:00:12.2]} 56... Kh6 {[%clk 0:00:22.4]} 57. Qc6+ {[%clk 0:00:13.1]}
57... Kh7 {[%clk 0:00:21]} 58. Qxa6 {[%clk 0:00:13.8]} 58... Rxh4+ {[%clk
0:00:20.9]} 59. Kg3 {[%clk 0:00:15.4]} 59... Rh6 {[%clk 0:00:20.5]} 60. Qd3+
{[%clk 0:00:16]} 60... Rg6+ {[%clk 0:00:21.5]} 61. Kf4 {[%clk 0:00:15]} 61...
Rb6 {[%clk 0:00:22.5]} 62. a4 {[%clk 0:00:15.9]} 62... Rf6+ {[%clk 0:00:23.9]}
63. Ke3 {[%clk 0:00:17.4]} 63... Re6+ {[%clk 0:00:25.2]} 64. Kf2 {[%clk
0:00:18.7]} 64... Rf6 {[%clk 0:00:26.6]} 65. a5 {[%clk 0:00:19.7]} 65... Rd6
{[%clk 0:00:27.8]} 66. Qf5 {[%clk 0:00:20.2]} 66... Rf6 {[%clk 0:00:28.9]} 67.
Qe4 {[%clk 0:00:21.6]} 67... Re6 {[%clk 0:00:29.1]} 68. Qd3 {[%clk 0:00:22.9]}
68... Rd6 {[%clk 0:00:30.3]} 69. Qc2 {[%clk 0:00:22.4]} 69... Re6 {[%clk
0:00:31.4]} 70. Qb1 {[%clk 0:00:22.2]} 70... Rd6 {[%clk 0:00:32]} 71. f4 {[%clk
0:00:23.4]} 71... Kg8 {[%clk 0:00:32.6]} 72. Qb3+ {[%clk 0:00:24]} 72... Kh8
{[%clk 0:00:33.4]} 73. Qb8+ {[%clk 0:00:24.6]} 73... Kh7 {[%clk 0:00:33.8]} 74.
Qb1 {[%clk 0:00:25.8]} 74... Kh8 {[%clk 0:00:34.5]} 75. Qh1+ {[%clk 0:00:27]}
75... Kg8 {[%clk 0:00:35.5]} 76. Qe4 {[%clk 0:00:28.3]} 76... Rgf6 {[%clk
0:00:36.6]} 77. Kg3 {[%clk 0:00:25.9]} 77... Rde6 {[%clk 0:00:37.6]} 78. Qd5
{[%clk 0:00:26.6]} 78... Kf8 {[%clk 0:00:37.6]} 79. Qd8+ {[%clk 0:00:26.9]}
79... Kf7 {[%clk 0:00:36.6]} 80. Qd7+ {[%clk 0:00:28.4]} 80... Kf8 {[%clk
0:00:36.3]} 81. Kg4 {[%clk 0:00:27.3]} 81... Rd6 {[%clk 0:00:37.2]} 82. Qc8+
{[%clk 0:00:28]} 82... Kf7 {[%clk 0:00:38.3]} 83. f5 {[%clk 0:00:28.2]} 83...
Rc6 {[%clk 0:00:37.4]} 84. Qd7+ {[%clk 0:00:28.8]} 84... Kf8 {[%clk 0:00:38.8]}
85. Kg5 {[%clk 0:00:30]} 85... Rcd6 {[%clk 0:00:38.7]} 86. Qc8+ {[%clk
0:00:30.9]} 86... Kf7 {[%clk 0:00:38.8]} 87. Qc4+ {[%clk 0:00:31]} 87... Kf8
{[%clk 0:00:39.1]} 88. Qe4 {[%clk 0:00:31.1]} 88... Rc6 {[%clk 0:00:39.4]} 89.
Kg4 {[%clk 0:00:29.4]} 89... Rcd6 {[%clk 0:00:40.6]} 90. Qb4 {[%clk 0:00:30.2]}
90... Kf7 {[%clk 0:00:40.8]} 91. Qb3+ {[%clk 0:00:31.2]} 91... Kf8 {[%clk
0:00:40.4]} 92. Kg5 {[%clk 0:00:30.6]} 92... Rc6 {[%clk 0:00:41]} 93. Qb8+
{[%clk 0:00:31.3]} 93... Kf7 {[%clk 0:00:40.7]} 94. Qb7+ {[%clk 0:00:32.8]}
94... Kf8 {[%clk 0:00:41.7]} 95. Kg4 {[%clk 0:00:25.4]} 95... Kg8 {[%clk
0:00:42.3]} 96. Kf4 {[%clk 0:00:25.6]} 96... Kh7 {[%clk 0:00:42.2]} 97. Ke4
{[%clk 0:00:23.2]} 97... Kg8 {[%clk 0:00:42.2]} 98. Qd7 {[%clk 0:00:23.4]} 98...
Rcd6 {[%clk 0:00:39.2]} 99. Qe8+ {[%clk 0:00:24.4]} 99... Kh7 {[%clk 0:00:39.8]}
100. Ke5 {[%clk 0:00:25.1]} 100... Ra6 {[%clk 0:00:39.2]} 101. Qb5 {[%clk
0:00:25.7]} 101... Kg8 {[%clk 0:00:39.4]} 102. Kd4 {[%clk 0:00:26.3]} 102...
Rad6+ {[%clk 0:00:38.3]} 103. Kc4 {[%clk 0:00:27.1]} 103... Rc6+ {[%clk
0:00:38.8]} 104. Kb4 {[%clk 0:00:27.8]} 104... Rcd6 {[%clk 0:00:39.5]} 105. Qe5
{[%clk 0:00:27.1]} 105... Ra6 {[%clk 0:00:38]} 106. Kb5 {[%clk 0:00:28.3]}
106... Kf7 {[%clk 0:00:38.8]} 107. Qc7+ {[%clk 0:00:25.6]} 107... Kg8 {[%clk
0:00:38.9]} 108. Qc8+ {[%clk 0:00:27.2]} 108... Kf7 {[%clk 0:00:39.9]} 109. Qxa6
{[%clk 0:00:28.8]} 109... Rxa6 {[%clk 0:00:40.9]} 110. Kxa6 {[%clk 0:00:30.7]}
110... Kf6 {[%clk 0:00:42.3]} 111. Kb7 {[%clk 0:00:32.4]} 111... Kxf5 {[%clk
0:00:42.7]} 112. a6 {[%clk 0:00:34.3]} 112... g5 {[%clk 0:00:43.8]} 113. a7
{[%clk 0:00:36.2]} 113... g4 {[%clk 0:00:45.7]} 114. a8=Q {[%clk 0:00:38.1]}
114... Kf4 {[%clk 0:00:45.6]} 115. Qa1 {[%clk 0:00:40]} 1-0

[Event "*** Titled Tuesday Blitz"]
[Site "Chess.com"]
[Date "2019.01.01"]
[Round "7"]
[White "KenanGarayev"]
[Black "TigranLPetrosyan"]
[Result "1/2-1/2"]
[WhiteElo "2857"]
[BlackElo "2845"]
[TimeControl "180+2"]
[EndTime "14:34:04 PST"]
[Termination "Game drawn by agreement"]

1. d4 {[%clk 0:03:01.9]} 1... g6 {[%clk 0:03:01.9]} 2. c4 {[%clk 0:03:02.4]}
2... Bg7 {[%clk 0:03:02.9]} 3. Nc3 {[%clk 0:03:03.5]} 3... d6 {[%clk 0:03:03.9]}
4. Nf3 {[%clk 0:03:03.8]} 4... f5 {[%clk 0:03:04.5]} 5. e4 {[%clk 0:03:01.6]}
5... fxe4 {[%clk 0:03:06.4]} 6. Nxe4 {[%clk 0:03:03.5]} 6... Nf6 {[%clk
0:03:05.2]} 7. Bd3 {[%clk 0:03:02.6]} 7... Nxe4 {[%clk 0:03:04.4]} 8. Bxe4
{[%clk 0:03:03.1]} 8... O-O {[%clk 0:03:05.7]} 9. O-O {[%clk 0:03:02.3]} 9...
Nc6 {[%clk 0:03:05.9]} 10. h3 {[%clk 0:02:58]} 10... e5 {[%clk 0:03:05.3]} 11.
Bg5 {[%clk 0:02:56]} 11... Qe8 {[%clk 0:03:04.9]} 12. Bd5+ {[%clk 0:02:56.6]}
12... Kh8 {[%clk 0:03:05.2]} 13. Re1 {[%clk 0:02:56.3]} 13... h6 {[%clk
0:02:44.5]} 14. Bh4 {[%clk 0:02:52.6]} 14... g5 {[%clk 0:02:45.8]} 15. Bg3
{[%clk 0:02:51.1]} 15... g4 {[%clk 0:02:47.1]} 16. hxg4 {[%clk 0:02:46.9]} 16...
Bxg4 {[%clk 0:02:49]} 17. Bxc6 {[%clk 0:02:38.6]} 17... Qxc6 {[%clk 0:02:22.4]}
1/2-1/2

[Event "*** Titled Tuesday Blitz"]
[Site "Chess.com"]
[Date "2019.01.01"]
[Round "7"]
[White "Muracle"]
[Black "Kostya_Nikologorskiy"]
[Result "1-0"]
[WhiteElo "2535"]
[BlackElo "2380"]
[TimeControl "180+2"]
[EndTime "14:34:15 PST"]
[Termination "Muracle won by resignation"]

1. Nf3 {[%clk 0:03:01.9]} 1... Nf6 {[%clk 0:02:58]} 2. g3 {[%clk 0:03:01.8]}
2... e6 {[%clk 0:02:58]} 3. Bg2 {[%clk 0:03:02.5]} 3... d5 {[%clk 0:02:59.6]} 4.
O-O {[%clk 0:03:03.4]} 4... c6 {[%clk 0:03:01.2]} 5. d4 {[%clk 0:03:04.1]} 5...
Be7 {[%clk 0:02:57.6]} 6. c4 {[%clk 0:03:03.8]} 6... O-O {[%clk 0:02:59.5]} 7.
Nbd2 {[%clk 0:03:04.5]} 7... Nbd7 {[%clk 0:02:55.3]} 8. Qc2 {[%clk 0:03:05.4]}
8... a6 {[%clk 0:02:55.9]} 9. e4 {[%clk 0:03:05.9]} 9... dxe4 {[%clk 0:02:54.3]}
10. Nxe4 {[%clk 0:03:06.7]} 10... Nxe4 {[%clk 0:02:56.2]} 11. Qxe4 {[%clk
0:03:07.5]} 11... Nf6 {[%clk 0:02:58.1]} 12. Qe2 {[%clk 0:03:08.7]} 12... c5
{[%clk 0:02:49.9]} 13. Rd1 {[%clk 0:03:08.8]} 13... cxd4 {[%clk 0:02:46]} 14.
Nxd4 {[%clk 0:03:09.5]} 14... Qb6 {[%clk 0:02:42.1]} 15. b3 {[%clk 0:03:07.2]}
15... Rd8 {[%clk 0:02:41.1]} 16. Bb2 {[%clk 0:03:07]} 16... Bd7 {[%clk
0:02:36.1]} 17. Nf5 {[%clk 0:03:06.4]} 17... Bf8 {[%clk 0:02:14.9]} 18. Nh6+
{[%clk 0:03:03.8]} 18... gxh6 {[%clk 0:01:25.9]} 19. Bxf6 {[%clk 0:03:02.9]}
19... e5 {[%clk 0:01:27.8]} 20. Bxd8 {[%clk 0:03:03.7]} 20... Rxd8 {[%clk
0:01:29.7]} 21. Rxd7 {[%clk 0:03:04]} 1-0

[Event "*** Titled Tuesday Blitz"]
[Site "Chess.com"]
[Date "2019.01.01"]
[Round "7"]
[White "iLuusions"]
[Black "TST2014"]
[Result "0-1"]
[WhiteElo "2561"]
[BlackElo "2498"]
[TimeControl "180+2"]
[EndTime "14:34:39 PST"]
[Termination "TST2014 won by resignation"]

1. d4 {[%clk 0:03:01.7]} 1... Nf6 {[%clk 0:03:00.3]} 2. c4 {[%clk 0:03:03.6]}
2... g6 {[%clk 0:03:01.1]} 3. Nf3 {[%clk 0:03:05.5]} 3... Bg7 {[%clk 0:03:02.5]}
4. g3 {[%clk 0:03:07.4]} 4... O-O {[%clk 0:03:03.7]} 5. Bg2 {[%clk 0:03:09.3]}
5... d6 {[%clk 0:03:05.3]} 6. O-O {[%clk 0:03:11.2]} 6... c5 {[%clk 0:03:06.4]}
7. Nc3 {[%clk 0:03:12.1]} 7... Nc6 {[%clk 0:03:06.9]} 8. d5 {[%clk 0:03:13.1]}
8... Na5 {[%clk 0:03:07.9]} 9. Nd2 {[%clk 0:03:14.8]} 9... a6 {[%clk 0:03:08]}
10. Qc2 {[%clk 0:03:15.6]} 10... Rb8 {[%clk 0:03:09]} 11. b3 {[%clk 0:03:15.7]}
11... b5 {[%clk 0:03:10.1]} 12. Bb2 {[%clk 0:03:17]} 12... e5 {[%clk 0:03:10.6]}
13. e4 {[%clk 0:03:13.6]} 13... Nd7 {[%clk 0:03:03]} 14. Rab1 {[%clk 0:03:12.5]}
14... Nb6 {[%clk 0:03:01.9]} 15. Ne2 {[%clk 0:03:07.9]} 15... f5 {[%clk
0:02:57.6]} 16. f4 {[%clk 0:03:08.1]} 16... Bd7 {[%clk 0:02:39.6]} 17. Nc1
{[%clk 0:02:36.8]} 17... bxc4 {[%clk 0:02:34.6]} 18. bxc4 {[%clk 0:02:36.8]}
18... Nbxc4 {[%clk 0:02:19.5]} 19. Nxc4 {[%clk 0:02:33.6]} 19... Nxc4 {[%clk
0:02:19.4]} 20. Qxc4 {[%clk 0:02:35.5]} 20... Bb5 {[%clk 0:02:17.6]} 21. Qc2
{[%clk 0:02:36.1]} 21... Bxf1 {[%clk 0:02:18.2]} 22. Bxf1 {[%clk 0:02:35.5]}
22... fxe4 {[%clk 0:02:17.2]} 23. fxe5 {[%clk 0:02:36]} 23... Qg5 {[%clk
0:02:10.4]} 24. Qb3 {[%clk 0:02:08.7]} 24... Rxb3 {[%clk 0:02:09.5]} 0-1

[Event "*** Titled Tuesday Blitz"]
[Site "Chess.com"]
[Date "2019.01.01"]
[Round "7"]
[White "lucasmito"]
[Black "benhal"]
[Result "0-1"]
[WhiteElo "2381"]
[BlackElo "2182"]
[TimeControl "180+2"]
[EndTime "14:35:09 PST"]
[Termination "benhal won by resignation"]

1. e4 {[%clk 0:03:01.9]} 1... c5 {[%clk 0:03:00.1]} 2. Nc3 {[%clk 0:03:02.4]}
2... e6 {[%clk 0:02:58.5]} 3. Nf3 {[%clk 0:03:03.3]} 3... Nc6 {[%clk 0:02:54.2]}
4. d4 {[%clk 0:03:05.2]} 4... cxd4 {[%clk 0:02:54.4]} 5. Nxd4 {[%clk 0:03:07.1]}
5... Qc7 {[%clk 0:02:54.5]} 6. Be3 {[%clk 0:03:08.6]} 6... a6 {[%clk 0:02:53.9]}
7. Qd2 {[%clk 0:03:10.2]} 7... Nf6 {[%clk 0:02:43.6]} 8. f3 {[%clk 0:03:10.8]}
8... b5 {[%clk 0:02:41.8]} 9. O-O-O {[%clk 0:03:12.1]} 9... Be7 {[%clk 0:02:39]}
10. Kb1 {[%clk 0:03:12.9]} 10... Nxd4 {[%clk 0:02:33.6]} 11. Bxd4 {[%clk
0:03:13.2]} 11... Bb7 {[%clk 0:02:34.2]} 12. g4 {[%clk 0:03:14.4]} 12... O-O
{[%clk 0:02:31.5]} 13. h4 {[%clk 0:03:15.3]} 13... Rac8 {[%clk 0:02:26.1]} 14.
h5 {[%clk 0:03:15.2]} 14... b4 {[%clk 0:02:23.5]} 15. Na4 {[%clk 0:03:16]} 15...
Nxe4 {[%clk 0:02:16.7]} 16. fxe4 {[%clk 0:03:13.8]} 16... Bxe4 {[%clk
0:02:17.5]} 17. Bd3 {[%clk 0:03:15.4]} 17... Bxh1 {[%clk 0:02:17.8]} 18. Rxh1
{[%clk 0:03:13.2]} 18... Qc6 {[%clk 0:02:18.8]} 19. Rf1 {[%clk 0:02:58.8]} 19...
Qxa4 {[%clk 0:02:15.3]} 20. g5 {[%clk 0:02:59.6]} 20... Qa5 {[%clk 0:02:02.6]}
21. Rg1 {[%clk 0:02:56.7]} 21... e5 {[%clk 0:01:58.6]} 22. Be3 {[%clk
0:02:47.2]} 22... Bc5 {[%clk 0:01:52.9]} 23. g6 {[%clk 0:02:45.3]} 23... Bxe3
{[%clk 0:01:35.9]} 24. Qxe3 {[%clk 0:02:39.2]} 24... fxg6 {[%clk 0:01:33.6]} 25.
hxg6 {[%clk 0:02:34]} 25... h6 {[%clk 0:01:33.8]} 26. Bc4+ {[%clk 0:02:32.5]}
26... Rxc4 {[%clk 0:01:32.6]} 0-1

[Event "*** Titled Tuesday Blitz"]
[Site "Chess.com"]
[Date "2019.01.01"]
[Round "7"]
[White "BogdanDeac"]
[Black "olksuna"]
[Result "1-0"]
[WhiteElo "2750"]
[BlackElo "2486"]
[TimeControl "180+2"]
[EndTime "14:35:11 PST"]
[Termination "BogdanDeac won by resignation"]

1. e4 {[%clk 0:03:01.9]} 1... c5 {[%clk 0:03:00.1]} 2. Nc3 {[%clk 0:03:00]} 2...
Nc6 {[%clk 0:03:01.2]} 3. Nf3 {[%clk 0:03:00]} 3... g6 {[%clk 0:03:02]} 4. d4
{[%clk 0:03:01]} 4... cxd4 {[%clk 0:03:03.6]} 5. Nxd4 {[%clk 0:03:02.8]} 5...
Bg7 {[%clk 0:03:05.1]} 6. Be3 {[%clk 0:03:04.7]} 6... Nf6 {[%clk 0:03:06.6]} 7.
Bc4 {[%clk 0:03:06.6]} 7... O-O {[%clk 0:03:08.2]} 8. Bb3 {[%clk 0:03:07.5]}
8... Re8 {[%clk 0:03:09.2]} 9. f3 {[%clk 0:03:06.9]} 9... e6 {[%clk 0:03:08.4]}
10. f4 {[%clk 0:03:07.4]} 10... d6 {[%clk 0:02:58.6]} 11. Qf3 {[%clk 0:03:07.8]}
11... a6 {[%clk 0:02:55.9]} 12. O-O-O {[%clk 0:03:08.3]} 12... Qc7 {[%clk
0:02:56]} 13. g4 {[%clk 0:03:05.9]} 13... Nxd4 {[%clk 0:02:56]} 14. Rxd4 {[%clk
0:03:05.1]} 14... e5 {[%clk 0:02:56.4]} 15. fxe5 {[%clk 0:02:59.4]} 15... dxe5
{[%clk 0:02:52.4]} 16. Rc4 {[%clk 0:02:59.1]} 16... Qa5 {[%clk 0:01:58.3]} 17.
g5 {[%clk 0:02:59]} 17... Nh5 {[%clk 0:01:51]} 18. Rc5 {[%clk 0:02:54.3]} 18...
Qd8 {[%clk 0:01:50.1]} 19. Bxf7+ {[%clk 0:02:50]} 19... Kh8 {[%clk 0:01:51.1]}
20. Rd1 {[%clk 0:02:50.7]} 20... Qe7 {[%clk 0:01:48.3]} 21. Bxe8 {[%clk
0:02:51.6]} 21... Qxe8 {[%clk 0:01:49.5]} 22. Nd5 {[%clk 0:02:52.3]} 22... Qa4
{[%clk 0:00:55.5]} 23. Nc7 {[%clk 0:02:51.8]} 1-0